Cogmind - Beta 13 @@@ ROGUE MODE // 2024.05.12 @ 15:27:38 Player: SaltHuntress Result: Destroyed by Y-45 Defender with Beam Rifle Performance ------------- Evolutions (2) 1000 Regions Visited (3) 600 Robots Destroyed (69) 345 Value Destroyed (1700) 1700 Prototype IDs (4) 80 Alien Tech Used (0) 0 Bonus (192) 192 TOTAL SCORE: 3917 Bonus ------- High Alert Combat Kills 192 Cogmind --------- Core Integrity 0/550 Matter 253/300 Energy 100/100 System Corruption 0% Temperature Cool (23) Movement Core (200) Ox3 Location -8/Materials Parts ------- > --- POWER (1) -------- (None) > --- PROPULSION (3) --- (None) > --- UTILITY (4) ------ Medium Storage Unit Machine Analyzer > --- WEAPON (3) ------- (None) > --- INVENTORY (10) --- Improved Ion Engine Improved Heat Sink Huge Storage Unit High-capacity Battery (250) Transport Network Coupler Medium Armor Plating Peak State ------------ > --- POWER ------------ Light Nuclear Core > --- PROPULSION ------- Armored Treads Armored Treads Armored Treads > --- UTILITY ---------- Improved Heat Sink Medium Storage Unit > --- WEAPON ----------- Minigun Minigun Minigun > --- INVENTORY -------- Huge Storage Unit High-capacity Battery Visual Processing Unit Transport Network Coupler Medium Armor Plating Shield Generator Light EM Pulse Cannon Mini Grenade Launcher Katana [Rating: 26] Favorites ----------- Power Ion Engine Engine Ion Engine Power Core Light Nuclear Core Propulsion Armored Treads Treads Armored Treads Leg Aluminum Leg Wheel Compact Wheel Utility Medium Storage Unit Device Cooling System Storage Medium Storage Unit Processor Signal Interpreter Weapon Minigun Energy Gun EM Pulse Gun Energy Cannon Light EM Pulse Cannon Ballistic Gun Minigun Ballistic Cannon Improved Light Cannon Launcher Mini Grenade Launcher Impact Weapon Heavy Flail Slashing Weapon Blade Saw Build | -11 -10 -9 -8 ------- Run | Yrd Mat Mat Mat Slots Evolved 4 | . . 2 2 Power . | . . . . Propulsion 1 | . . 1 . Utility 2 | . . . 2 Weapon 1 | . . 1 . Parts Attached 90 | 8 25 52 5 Power 9 | 1 2 6 . Engine 8 | 1 2 5 . Core 1 | . . 1 . Reactor . | . . . . Propulsion 20 | 3 4 11 2 Treads 9 | . . 8 1 Leg 9 | 3 2 3 1 Wheel 2 | . 2 . . Hover . | . . . . Flight . | . . . . Utility 18 | 2 7 6 3 Device 8 | 2 1 3 2 Storage 6 | . 4 2 . Processor 4 | . 2 1 1 Hackware . | . . . . Protection . | . . . . Artifact . | . . . . Weapon 43 | 2 12 29 . Energy Gun 7 | 2 3 2 . Energy Cannon 5 | . 2 3 . Ballistic Gun 19 | . 4 15 . Ballistic Cannon 1 | . . 1 . Launcher 8 | . 3 5 . Special Weapon . | . . . . Impact Weapon 1 | . . 1 . Slashing Weapon 2 | . . 2 . Piercing Weapon . | . . . . Special Melee Weapon . | . . . . Unidentified Prototypes 2 | . . 2 . Corrupted Parts 1 | 1 . . . System Corruption 7 | 7 . . . Parts Lost 14 | . 1 2 11 Power 1 | . . . 1 Propulsion 5 | . . . 5 Utility 2 | . . . 2 Weapon 6 | . 1 2 3 Highest Loss Streak 11 | . 1 1 11 To Critical Strikes . | . . . . Average Slot Usage (%) 96 | . 98 96 77 Engine 11 | . 14 10 7 Treads 18 | . . 26 . Leg 9 | . 23 4 17 Wheel 1 | . 4 . . Device 8 | . 7 9 11 Storage 11 | . 10 11 11 Processor 3 | . 9 1 9 Energy Gun 5 | . 19 . 13 Energy Cannon 1 | . 2 . . Ballistic Gun 17 | . 6 22 . Ballistic Cannon 2 | . . 3 . Launcher 1 | . . 2 6 Naked Turns . | . . . . Heaviest Build 31 | 9 22 30 31 Greatest Support 63 | 20 32 63 33 Greatest Overweight (x) 9 | . . 2 9 Average Overweight (x) . | . . . . Largest Inventory Capacity 10 | 5 10 10 10 Average Capacity 9 | 5 8 10 10 Most Carried 10 | 5 10 10 7 Average Carried 8 | 2 6 9 6 Final Capacity 10 | 5 10 10 10 Final Carried 9 | 4 9 8 6 Class Distribution -------------------- 50% | Gunner 38% | Mutant 5% | Gladiator Dominant Class ---------------- Mutant | -10/Materials Gunner | -9/Materials Tank | -8/Materials Resources | -11 -10 -9 -8 ----------- Run | Yrd Mat Mat Mat Matter Collected 1804 | 280 267 1232 25 Remotely . | . . . . Salvage Created 2006 | 49 419 1405 133 Parts 149 | 5 35 105 4 Haulers Intercepted 2 | . . 2 . Recyclers Shooed . | . . . . Parts Field Recycled . | . . . . Retrieved Matter . | . . . . Parts Self-Destructed . | . . . . Prevented . | . . . . Kills | -11 -10 -9 -8 ------- Run | Yrd Mat Mat Mat Combat Hostiles Destroyed 48 | 1 14 29 4 Melee 2 | . . 1 1 Guns 27 | . 5 19 3 Cannons 2 | . . 2 . AOE 17 | 1 9 7 . Classes Destroyed 11 | 2 4 5 . Worker 2 | . . 2 . Builder 3 | . . 3 . Tunneler 1 | 1 . . . Hauler 2 | . . 2 . Recycler 4 | . 1 2 1 Operator 1 | . 1 . . Watcher 8 | . 3 5 . Swarmer 17 | . 8 6 3 Grunt 22 | 1 6 14 1 Duelist 1 | . . 1 . Sentry 8 | . . 8 . Best Kill Streak 8 | 2 4 8 4 Combat Bots Only 6 | 1 3 6 2 Max Kills in Single Turn 3 | 2 3 2 1 Gunslinging 1 | . 1 . . Exploded 3 | 1 3 1 . Melee 1 | . . 1 1 Uniques/NPCs Destroyed . | . . . . Combat | -11 -10 -9 -8 -------- Run | Yrd Mat Mat Mat Hostile Shots Fired 325 | 3 48 131 143 Missed 93 | 2 13 34 44 Damage Taken 3580 | 10 358 1717 1495 Core 777 | . 31 196 550 Absorbed by Shields 127 | . . . 127 Regen/Repaired (Parts) 158 | . . 158 . Core Remaining (%) 79 | 100 87 51 . Volleys Fired 104 | 3 27 60 14 Largest 3 | 2 2 3 3 Hottest 142 | 80 112 135 142 Shots Fired 260 | 6 53 170 31 Gun 212 | 6 45 133 28 Cannon 31 | . 3 28 . Launcher 17 | . 5 9 3 Special . | . . . . Kinetic 156 | . 8 148 . Thermal 32 | . 4 . 28 Explosive 17 | . 5 9 3 Electromagnetic 55 | 6 36 13 . Robot Hit Streak 8 | 5 3 8 6 Robot Miss Streak 6 | 1 3 6 3 Penetration Max . | . . . . Secondary Targets 4 | . 1 3 . Max Gunslinging Chain 1 | . 1 1 . Shots Hit Robots 130 | 5 26 85 14 Core Hits 91 | 3 22 56 10 Critical Kills 1 | . . 1 . Critical Parts Destroyed 1 | . . 1 . Critical Strikes 6 | 1 . 2 3 Burn 3 | . . . 3 Destroy 1 | . . 1 . Corrupt 1 | 1 . . . Smash 1 | . . 1 . Melee Attacks 2 | . . 2 . Impact 2 | . . 2 . Slashing . | . . . . Piercing . | . . . . Sneak Attacks . | . . . . Combat Hostiles . | . . . . Follow-up Attacks . | . . . . Damage Inflicted 3878 | 128 817 2608 325 Guns 1823 | 69 293 1272 189 Cannons 342 | . . 342 . Explosions 1601 | 59 524 901 117 Melee 93 | . . 93 . Ramming 19 | . . . 19 Kinetic 1480 | . 36 1444 . Thermal 417 | 59 47 122 189 Explosive 1397 | . 501 779 117 Electromagnetic 472 | 69 233 170 . Impact 93 | . . 93 . Slashing . | . . . . Piercing . | . . . . Highest Corruption 7 | 7 7 3 . Average Corruption 4 | 7 7 2 . Corruption Purged . | . . . . Corruption Blocked . | . . . . Effects 67 | 1 32 34 . Message Errors 17 | . 8 9 . Matter Fused 16 | . 9 7 . Heat Flow Errors 7 | . 2 5 . Energy Discharges 5 | . 3 2 . Data Loss (minor) 11 | . 6 5 . Data Loss (major) 2 | 1 . 1 . Misfires 4 | . 2 2 . Alerts 3 | . 1 2 . Weapon Failures 2 | . 1 1 . Overload Shots . | . . . . Overflow Damage 156 | . 36 106 14 Projectiles . | . . . . Explosions 89 | . 36 39 14 Melee 67 | . . 67 . Knockbacks . | . . . . Impact . | . . . . Kinetic . | . . . . Secondary . | . . . . Self-Inflicted Damage 522 | . 36 412 74 Shots 10 | . 2 6 2 Rammed 10 | . . . 10 Targets Rammed 14 | . . . 14 Kicked 3 | . . . 3 Crushed 1 | . . . 1 Highest Temperature 273 | 60 260 273 265 Average Temperature 62 | 32 45 63 108 Received Heat Transfer 1099 | 6 66 489 538 Siege Activations . | . . . . Robots Corrupted . | . . . . Combat Hostiles . | . . . . Parts Fried 3 | . . 3 . Impact Corruptions 2 | . . 2 . Robots Melted . | . . . . Combat Hostiles . | . . . . Parts Melted . | . . . . Heat Transferred 927 | 50 124 50 703 Parts Sabotaged . | . . . . Parts Stolen . | . . . . Parts Stripped . | . . . . Power Chain Reactions 3 | 1 1 1 . Alert | -11 -10 -9 -8 ------- Run | Yrd Mat Mat Mat Peak Influence 708 | 25 328 708 430 Initial 283 | . 16 86 283 Average 404 | 8 126 520 364 Maximum Alert Level 3 | . 1 3 2 Low Security (%) 23 | 100 82 1 . Level 1 14 | . 17 10 71 Level 2 57 | . . 81 28 Level 3 4 | . . 6 . Level 4 . | . . . . Level 5 . | . . . . High Security . | . . . . Max Security . | . . . . Squads Dispatched 7 | . 3 4 . Investigation 4 | . 2 2 . Extermination . | . . . . Reinforcement 2 | . 1 1 . Assault 1 | . . 1 . Garrison . | . . . . Intercept . | . . . . Searches Triggered . | . . . . Construction Impeded . | . . . . Haulers Reinforced . | . . . . Active Scanning Responses . | . . . . Cargo Convoy Interrupts . | . . . . Stealth | -11 -10 -9 -8 --------- Run | Yrd Mat Mat Mat Distress Signals 3 | . . 2 1 Communications Jammed . | . . . . Distress Signals . | . . . . Times Spotted 79 | 1 21 45 12 Peak Tracking Total 7 | 1 3 7 7 Tactical Retreats 1 | . 1 . . Traps | -11 -10 -9 -8 ------- Run | Yrd Mat Mat Mat Traps Triggered 7 | . 2 5 . Indirectly . | . . . . Trap Hack Attempts . | . . . . Triggered . | . . . . Disarmed . | . . . . Reprogrammed . | . . . . Reused . | . . . . Traps Extracted . | . . . . Installed . | . . . . Triggered . | . . . . Machines | -11 -10 -9 -8 ---------- Run | Yrd Mat Mat Mat Machines Disabled 14 | . 1 13 . Max in Single Turn 2 | . 1 2 . Machines Repaired . | . . . . Machines Dismantled . | . . . . Machines Sabotaged . | . . . . Overloaded Fab Kills . | . . . . Hacking | -11 -10 -9 -8 --------- Run | Yrd Mat Mat Mat Machines Accessed 17 | . 8 8 1 Terminals 12 | . 7 5 . Fabricators . | . . . . Repair Stations 2 | . . 2 . Recycling Units 3 | . 1 1 1 Scanalyzers . | . . . . Garrison Access . | . . . . Total Hacks 47 | . 21 25 1 Successful 31 | . 13 17 1 Failed 16 | . 8 8 . Catastrophic . | . . . . Database Lockouts . | . . . . Manual 2 | . . . 2 Terminals 28 | . 18 10 . Fabricators . | . . . . Repair Stations 12 | . . 12 . Recycling Units 7 | . 3 3 1 Scanalyzers . | . . . . Garrison Access . | . . . . Terminal Hacks 17 | . 10 7 . Record 8 | . 4 4 . Robot Analysis 1 | . 1 . . Prototype ID Bank 1 | . 1 . . Emergency Access Points 1 | . . 1 . Alert Level 1 | . . 1 . Maintenance Status 1 | . 1 . . Hauler Manifests 2 | . 1 1 . Registered Components 1 | . 1 . . Zone Layout 1 | . 1 . . Fabricator Hacks . | . . . . Repair Station Hacks 9 | . . 9 . Scan Component 5 | . . 5 . Repair 4 | . . 4 . Recycling Unit Hacks 5 | . 3 1 1 Process 1 | . 1 . . Report Inventory 1 | . 1 . . Retrieve Components 3 | . 1 1 1 Scanalyzer . | . . . . Garrison Access Hacks . | . . . . Unauthorized Hacks . | . . . . Terminals . | . . . . Fabricators . | . . . . Repair Stations . | . . . . Recycling Units . | . . . . Scanalyzers . | . . . . Garrison Access . | . . . . Data Cores Recovered 1 | . 1 . . Used . | . . . . Hacking Detections 10 | . 6 4 . Full Trace Events 2 | . 1 1 . Feedback Events . | . . . . Feedback Blocked . | . . . . Robot Schematics Acquired . | . . . . Robots Built . | . . . . Authchips . | . . . . Time . | . . . . Total Robot Build Rating . | . . . . Part Schematics Acquired . | . . . . Parts Built . | . . . . Authchips . | . . . . Time . | . . . . Total Part Build Rating . | . . . . Parts Repaired 4 | . . 4 . Time 140 | . . 140 . Parts Recycled . | . . . . Recycled Matter 98 | . 98 . . Retrieved Matter . | . . . . Retrieved Components 9 | . . 9 . Parts Scanalyzed . | . . . . Part Schematics Acquired . | . . . . Parts Damaged . | . . . . Bothacking | -11 -10 -9 -8 ------------ Run | Yrd Mat Mat Mat Used RIF Installer . | . . . . Robots Hacked . | . . . . Non-combat . | . . . . Combat . | . . . . Robot Hacks Applied . | . . . . Relay Couplers Released . | . . . . Fabnet Peak Effective % . | . . . . Robots Rewired . | . . . . Allies Hacked . | . . . . Hacks Repelled . | . . . . Allies | -11 -10 -9 -8 -------- Run | Yrd Mat Mat Mat Total Allies . | . . . . Largest Group . | . . . . Highest-Rated Group . | . . . . Highest-Rated Ally . | . . . . Total Orders . | . . . . Ally Attacks . | . . . . Total Damage . | . . . . Kills . | . . . . Allies Corrupted . | . . . . Allies Melted . | . . . . Intel | -11 -10 -9 -8 ------- Run | Yrd Mat Mat Mat Robot Analysis Total 1 | . 1 . . Derelict Logs Recovered . | . . . . Drone Launches . | . . . . Drone Recoveries . | . . . . Exploration | -11 -10 -9 -8 ------------- Run | Yrd Mat Mat Mat Turns Passed 4146 | 109 1020 2857 160 Spaces Moved 2369 | 79 705 1533 52 Core 28 | 21 . . 7 Treads 1170 | . . 1167 3 Legs 973 | 58 563 310 42 Wheels 198 | . 142 56 . Hover . | . . . . Flight . | . . . . Fastest Speed 50 | 50 100 100 120 Average Speed 144 | 101 115 159 161 Slowest Speed 500 | 120 120 260 500 Overloaded Moves . | . . . . Propulsion Burnouts . | . . . . Robots Hopped . | . . . . Cave-ins Triggered . | . . . . Exploration Rate (%) 49 | 6 95 88 8 Regions Visited 3 Branch Regions . Pre-discovered Areas . | . . . . Known Exits Taken . | . . . . Unknown Exits Taken 3 | 1 1 1 . Scrap Searched . | . . . . Spaces Dug . | . . . . Terrain Destroyed 165 | . 32 106 27 Melee . | . . . . Projectile . | . . . . AOE 165 | . 32 106 27 Terrain Rammed . | . . . . Walls Destroyed . | . . . . Machines Disabled . | . . . . Actions | -11 -10 -9 -8 --------- Run | Yrd Mat Mat Mat Total 2885 | 102 861 1836 86 Wait 155 | . 50 104 1 Move 2366 | 78 704 1532 52 Hop . | . . . . Pick Up 82 | 12 31 39 . Fast Attach 16 | . . 14 2 Attach 35 | 8 10 15 2 Detach 3 | . 1 2 . Swap 39 | . 15 23 1 Drop 69 | 1 23 45 . Fire 104 | 3 27 60 14 Melee 2 | . . 2 . Ram 6 | . . . 6 Kick 3 | . . . 3 Crush 5 | . . . 5 Escape Stasis . | . . . . Rewire . | . . . . Trap . | . . . . Miscellaneous . | . . . . Route ------- -11/Scrapyard -10/Materials (discovered 5 exits: *Mat x3 / *Min x2) -9/Materials (discovered 3 exits: *Mat x3) -8/Materials History --------- Turn | Location | Event 2 | -11/Scrapyard | Met Revision 17 65 | -11/Scrapyard | Discovered new exit (range 8) 110 | -11/Scrapyard | Entered Materials 307 | -10/Materials | Discovered new exit (range 14) 312 | -10/Materials | Build established: Mutant 436 | -10/Materials | Identified exit to Mines 511 | -10/Materials | Discovered new exit (range 12) 778 | -10/Materials | Discovered new exit (range 16) 937 | -10/Materials | Discovered exit to Mines (range 11) 1041 | -10/Materials | Discovered new exit (range 16) 1130 | -10/Materials | Entered another Materials area 1130 | -9/Materials | Evolved 2 slots: Propulsion x1, Weapon x1 1578 | -9/Materials | Repaired Minigun? 1939 | -9/Materials | Build established: Gunner 1980 | -9/Materials | Discovered new exit (range 4) 2269 | -9/Materials | Discovered new exit (range 10) 2736 | -9/Materials | Repaired Arm. Treads 2774 | -9/Materials | Repaired Minigun? 3135 | -9/Materials | Repaired Lgt. Treads 3254 | -9/Materials | Discovered new exit (range 15) 3930 | -9/Materials | First assault squad dispatched 3987 | -9/Materials | Entered another Materials area 3987 | -8/Materials | Evolved 2 slots: Utility x2 4129 | -8/Materials | Core integrity fell below 50% 4141 | -8/Materials | Core integrity fell below 20% 4147 | -8/Materials | Destroyed by Y-45 Defender with Beam Rifle Last Messages --------------- Acquired Adv. Treads. Acquired Imp. Aluminum Leg. Kicked Y-45 Defender. Critical hit (Burn: +37). Kicked Y-45 Defender. M-28 Smith repairs G-47 Trooper. Slammed into G-47 Trooper. Imp. Aluminum Leg destroyed. Slammed into G-47 Trooper. Critical hit (Burn: +37). Crushed G-47 Trooper. G-47 Trooper destroyed. Acquired 2 matter. Adv. Treads destroyed. Slammed into Y-45 Defender. Destabilizing: System interference. Machine Analyzer temporarily disabled. Slammed into Y-45 Defender. Critical hit (Burn: +37). [Achievement: First Step to Greatness] Map ----- +----------------------------------------------------+ | | | | | | | | | | | | | | | | | | | | | | | | | | | | | | | | | | | | | | | | | ????????????#??##############????????????????????? | | ??????????## # #????????????????????? | | ??????????# """ """ # #????????????????????? | | ???????????# """ """ # #????????????????????? | | ???????????# """ """ # Y #????????????????????? | | ???????????# # @m!#????????????????????? | | ????######## #! g%#????????????????????? | | ????# #? ??# Y #????????????????????? | | ????# """ #?#### ####Y########????????????????? | | ##### "Y" ### # ?????????? | | # / % ?????????? | | # ### ##### ############????????????? | | # #?## # ???? #??????????????????????? | | # ## ##??#?# ???? #??????????????????????? | | # #????# #???? #??????????????????????? | | # = ! #????#/#????t ???????????????????????? | | # %%[ #???? ???? ???????????????????????? | | #### # #??""" ????## #???????????????????????? | | ???## #??"""??????? ????????????????????????? | | ????### ?"""??????? ????????????????????????? | | ??????# % ? ??????? ????????????????????????? | | ??????## """????????????????????????????????? | | ???????# # """????????????????????????????????? | | ???????# # """????????????????????????????????? | | ???????# # ?????????????????????????????????? | | ?"""???? #?###?????????????????????????????????? | | ?"""???? #?????????????????????????????????????? | | ?"""???? #?????????????????????????????????????? | | ???????? #?????????????????????????????????????? | | ???????? #?????????????????????????????????????? | +----------------------------------------------------+ Best States ------------- Heat Dissipation 53 Energy Generation 14 Energy Capacity 530 Matter Stores 300 Matter Capacity 300 Sight Range 18 Terrain Scan Range 16 Terrain Scan Density 10 Evasion (%) 55 Melee Accuracy 5 Recoil Reduction 3 Item Schematics ----------------- None Robot Schematics ------------------ None Fabricated ------------ Nothing Alien Tech Used ----------------- None Achievements -------------- First Step to Greatness Loot Pinata One Hack Too Far Part-time Mechanic Risk Taker Shopping List Significant Disruption Storm Trooper Uninvited Guest Challenges ------------ None Game ------ Seed FusionGravmagLoader Manual? 0 Play Time 01:43:22 Cumulative 1.7 hours Start 2024.05.12 @ 10:42:19 End 2024.05.12 @ 15:27:38 Sessions 7 Manual Loads 0 Difficulty Rogue Special Mode None Game No. 1 Rogue 1 Adventurer 0 Explorer 0 Win Type - Total 0 Types 0/0/0/0/0/0/0/0/0 Lore% 1 Gallery% 4 Achievement% 3 Wizard Run 0 Options --------- Layout 1 ASCII 0 Keyboard 0 Movement Mouse Keybinds 0 Fullscreen 1 Font 32/SmallcapsGlow Map View 50x35 Zoom Use 0% Tactical HUD 0 Map Filters NONE Filters NONE Steam 1 RUN: 6dc8c6f3-0b76-4c1c-bd6c-f93d2fdad40d